fUSD/lending_fUSD_20250320
["ID","MTS","AMOUNT","RATE_DAILY","PERIOD"]
[356435109,1742443842778,-500.0,0.00027987,2]
[356435110,1742443842787,-266.77678123,0.00027999,2]
[356435111,1742443842803,-275.22321877,0.00027999,2]
[356435112,1742443842812,-764.77668123,0.00027999,2]
[356435113,1742443842823,-142.22331877,0.00027999,2]
[356435114,1742443842833,-189.17835123,0.00027999,2]
[356435115,1742443842846,-1239.36564877,0.00027999,2]
[356435116,1742443842855,-4082.0,0.00027999,2]
[356435117,1742443842865,-151.0,0.00027999,2]
[356435118,1742443842874,-3938.0,0.00027999,2]
[356435119,1742443842884,-420.191,0.00027999,2]
[356435120,1742443842893,-177.222,0.00028007,2]
[356435121,1742443842902,-150.0,0.00028032,2]
[356435122,1742443842912,-500.0,0.0002804,2]
[356435123,1742443842921,-403.25131472,0.0002804,2]
[356435124,1742443842933,-96.74868528,0.0002804,2]
[356435125,1742443842943,-331.45,0.00028042,18]
[356435126,1742443842953,-552.18466675,0.00028042,2]
[356435127,1742443842963,-500.0,0.00028042,2]
[356435128,1742443842972,-500.0,0.00028042,2]
[356435129,1742443842982,-301.25,0.00028051,2]
[356435130,1742443842992,-1280.0,0.00028061,2]
[356435131,1742443843002,-449.65745655,0.00028061,2]
[356435134,1742443843013,-68.14554345,0.00028061,2]
[356435135,1742443843023,-500.0,0.00028095,2]
[356435137,1742443843032,-500.0,0.00028095,2]
[356435139,1742443843042,-500.0,0.00028097,2]
[356435141,1742443843051,-227.51705339,0.00028097,2]
[356435179,1742443845666,-272.48294661,0.00028097,2]
[356435181,1742443845676,-500.0,0.0002815,2]
[356435183,1742443845685,-359.41893248,0.0002815,2]
[356435209,1742443845905,-140.58106752,0.0002815,2]
[356435211,1742443845915,-458.80668885,0.00028152,2]
[356435219,1742443898306,-211.16617407,0.00027589,2]
[356435220,1742443904996,-150.0,0.00027378,2]
[356435221,1742443920033,-153.0,0.00027378,2]
[356435222,1742443920058,-3.0,0.00027378,2]
[356435223,1742443920082,-55.16617407,0.00027589,2]
[356435224,1742443943497,-327.5334,0.00027589,2]
[356435233,1742444445129,-202.0,0.00026299,2]
[356435234,1742444445154,-80.9097,0.000263,3]
[356435236,1742444451654,-282.9097,0.000263,3]
[356435239,1742444735661,3244.7214046,8e-05,2]
[356435240,1742444735685,3244.7214046,8e-05,2]
[356435241,1742444735713,3244.7214046,8e-05,2]
[356435242,1742444735742,3244.7214046,8e-05,2]
[356435243,1742444735765,3244.7214046,8e-05,2]
[356435244,1742444735788,3244.7214046,8e-05,2]
[356435245,1742444735811,531.6715724,8e-05,2]
[356435248,1742444761536,2713.0498322,8e-05,2]
[356435249,1742444761559,3244.7214046,8e-05,2]
[356435250,1742444761580,3244.7214046,8e-05,2]
[356435251,1742444761602,3244.7214046,8e-05,2]
[356435252,1742444761627,1894.8,8e-05,2]
[356435253,1742444761657,151.32864167,8e-05,2]
[356435254,1742444761699,3200.0,8e-05,2]
[356435255,1742444761725,2745.49198349,8e-05,2]
[356435256,1742444774937,440.57485311,0.00023,120]
[356435262,1742444922478,-250.01656051,9.828e-05,2]
[356435263,1742444922503,-49.98343949,0.00025,7]
[356435264,1742444956560,-150.0,0.000262,2]
[356435287,1742445031928,-306.0,0.000263,3]
[356435288,1742445032040,-294.0,0.000263,3]
[356435289,1742445032049,-162.32817975,0.000263,3]
[356435315,1742445037762,-338.05395599,0.000262,2]
[356435316,1742445037772,-437.67182025,0.000263,3]
[356435317,1742445037782,-207.27713535,0.000263,3]
[356435318,1742445037794,-392.72286465,0.000263,3]
[356435319,1742445037803,-133.35782839,0.000263,3]
[356435320,1742445037814,-666.64217161,0.000263,3]
[356435321,1742445037823,-703.02,0.000263,3]
[356435322,1742445037832,-236.18,0.000263,3]
[356435323,1742445037842,-160.1,0.00026849,2]
[356435324,1742445037851,-485.09219001,0.00027589,2]
[356435325,1742445037861,-1000.0,0.00027743,2]
[356435326,1742445037870,-150.0,0.00027811,7]
[356435327,1742445037880,-1281.6,0.00027816,2]
[356435328,1742445037889,-162.76,0.00027882,2]
[356435329,1742445037899,-247.76830398,0.000279,4]
[356435330,1742445037908,-302.0,0.00028062,2]
[356435331,1742445037918,-150.0,0.00028078,2]
[356435332,1742445037927,-542.0,0.00028079,2]
[356435333,1742445037936,-900.777,0.00028079,2]
[356435334,1742445037946,-151.0,0.00028079,2]
[356435335,1742445037955,-151.0,0.00028079,2]
[356435336,1742445037964,-259.25,0.00028079,2]
[356435337,1742445037973,-151.97251927,0.00028102,2]
[356435338,1742445037983,-150.0,0.00028112,2]
[356435339,1742445037997,-150.0,0.00028118,2]
[356435341,1742445038006,-150.0,0.00028126,2]
[356435343,1742445038015,-150.0,0.00028133,2]
[356435345,1742445038025,-150.0,0.00028138,2]
[356435347,1742445038035,-150.0,0.00028152,2]
[356435349,1742445038044,-709.07665,0.00028152,41]
[356435351,1742445038053,-150.0,0.00028157,2]
[356435353,1742445038063,-150.0,0.0002816,2]
[356435355,1742445038071,-150.0,0.00028163,2]
[356435357,1742445038081,-907.41780867,0.00028189,2]
[356435359,1742445038090,-150.0,0.00028205,2]
[356435361,1742445038099,-150.0,0.00028254,2]
[356435362,1742445038109,-150.0,0.00028257,2]
[356435365,1742445038118,-265.16,0.00028258,19]
[356435366,1742445038128,-150.0,0.00028265,2]
[356435368,1742445038138,-189.87465337,0.00028266,2]
[356435370,1742445038147,-150.0,0.00028286,2]
[356435373,1742445038157,-150.0,0.00028293,2]
[356435374,1742445038167,-150.0,0.00028296,2]
[356435375,1742445038176,-200.0,0.000283,30]
[356435376,1742445038185,-200.0,0.000283,30]
[356435377,1742445038195,-200.0,0.000283,30]
[356435378,1742445038205,-200.0,0.000283,30]
[356435379,1742445038214,-202.0,0.000283,30]
[356435380,1742445038224,-150.0,0.00028303,2]
[356435381,1742445038233,-150.0,0.00028334,2]
[356435382,1742445038243,-150.0,0.00028366,2]
[356435383,1742445038253,-1039.3963455,0.0002837,2]
[356435384,1742445038262,-152.3,0.0002837,2]
[356435385,1742445038272,-150.0,0.00028373,2]
[356435386,1742445038282,-150.0,0.00028373,2]
[356435387,1742445038293,-1647.8133803,0.00028389,2]
[356435388,1742445038303,-1241.52464658,0.00028428,2]
[356435389,1742445038316,-70.65801532,0.00028428,2]
[356435390,1742445038326,-1012.18398476,0.00028429,2]
[356435391,1742445038336,-151.80044,0.00028488,7]
[356435392,1742445038346,-162.76,0.00028579,2]
[356435393,1742445038356,-516.50543283,0.0002861,2]
[356435394,1742445038368,-3714.75,0.0002861,2]
[356435395,1742445038380,-1887.54303387,0.0002861,2]
[356435396,1742445038392,-513.49700321,0.0002861,2]
[356435397,1742445038404,-343.53394244,0.0002861,2]
[356435398,1742445038416,-10302.95764162,0.0002861,2]
[356435399,1742445038426,-1257.6093508,0.00028687,2]
[356435400,1742445038436,-1475.822356,0.00028687,2]
[356435401,1742445038445,-151.80044,0.00028688,7]
[356435402,1742445038456,-4018.69021158,0.00028706,12]
[356435403,1742445038467,-17634.8498427,0.00028706,12]
[356435404,1742445038479,-17561.62566245,0.00028706,12]
[356435409,1742445039917,-38.01865137,0.00028706,12]
[356435410,1742445039929,-1387.40725909,0.00028706,12]
[356435411,1742445039940,-999.5000125,0.00028706,12]
[356435412,1742445039951,-2082.375,0.00028706,12]
[356435413,1742445039962,-447.06094897,0.00028706,12]
[356435414,1742445039971,-911.93905103,0.00028707,2]
[356435415,1742445039983,-367.03000001,0.00028707,2]
[356435416,1742445039999,-698.50588406,0.00028707,2]
[356435417,1742445040009,-1574.6979332,0.00028714,2]
[356435418,1742445040018,-1837.2132044,0.00028715,2]
[356435419,1742445040027,-219.99377727,0.00028717,2]
[356435420,1742445040038,-247.76830398,0.00028728,5]
[356435421,1742445040047,-150.0,0.0002882,2]
[356435422,1742445040057,-295.22,0.00028841,2]
[356435423,1742445040066,-150.0,0.00028841,2]
[356435424,1742445040076,-150.0,0.00028841,2]
[356435425,1742445040085,-151.80044,0.00028888,7]
[356435426,1742445040095,-1000.0,0.0002899,6]
[356435427,1742445040107,-1000.0,0.0002899,6]
[356435428,1742445040116,-1005.0,0.0002899,5]
[356435429,1742445040126,-143.9290307,0.0002899,4]
[356435430,1742445040139,-716.0709693,0.0002899,4]
[356435431,1742445040149,-900.0,0.00029,30]
[356435432,1742445040159,-918.35454115,0.00029,120]
[356435433,1742445040170,-281.0,0.00029,2]
[356435434,1742445040179,-315.0,0.00029,2]
[356435435,1742445040188,-615.38057126,0.00029025,2]
[356435436,1742445040198,-350.0,0.0002904,2]
[356435437,1742445040207,-151.80044,0.00029088,7]
[356435438,1742445040217,-407.46186,0.00029154,15]
[356435439,1742445040227,-423.07,0.000292,30]
[356435440,1742445040236,-339.22,0.000292,2]
[356435441,1742445040246,-162.76,0.00029276,2]
[356435442,1742445040255,-151.80044,0.00029288,7]
[356435443,1742445040264,-1694.0353613,0.0002934,2]
[356435444,1742445040274,-1944.47367547,0.0002935,14]
[356435445,1742445040284,-1107.93922949,0.0002935,14]
[356435446,1742445040293,-2099.7284756,0.0002936,2]
[356435447,1742445040302,-231.86662865,0.00029379,2]
[356435448,1742445040311,-287.96771627,0.00029379,2]
[356435449,1742445040321,-231.86662858,0.00029381,2]
[356435450,1742445040330,-287.96771623,0.00029382,2]
[356435451,1742445040340,-231.86662858,0.00029384,2]
[356435452,1742445040349,-287.96771623,0.00029385,2]
[356435453,1742445040358,-231.86662858,0.00029386,2]
[356435454,1742445040368,-287.96771623,0.00029388,2]
[356435455,1742445040377,-231.86662858,0.00029388,2]
[356435456,1742445040386,-287.96771623,0.00029391,2]
[356435458,1742445040395,-221.9503346,0.00029391,2]
[356435460,1742445040408,-9.91629398,0.00029391,2]
[356435462,1742445040418,-231.86662858,0.00029393,2]
[356435463,1742445040428,-287.96771623,0.00029393,2]
[356435464,1742445040437,-231.86662858,0.00029395,2]
[356435466,1742445040446,-287.96771623,0.00029396,2]
[356435468,1742445040455,-231.86662858,0.00029398,2]
[356435469,1742445040464,-287.96771623,0.00029399,2]
[356435471,1742445040474,-1000.0,0.000294,5]
[356435473,1742445040485,-231.86662858,0.000294,2]
[356435474,1742445040494,-287.96771623,0.00029402,2]
[356435475,1742445040503,-287.96771623,0.00029405,2]
[356435476,1742445040513,-287.96771623,0.00029408,2]
[356435477,1742445040522,-521.0,0.00029409,5]
[356435478,1742445040531,-4370.31541544,0.00029414,2]
[356435479,1742445040544,-453.43599139,0.00029414,2]
[356435480,1742445040553,-1145.42573498,0.00029434,2]
[356435481,1742445040563,-521.81672304,0.00029434,2]
[356435482,1742445040572,-2213.08330733,0.00029434,2]
[356435483,1742445040581,-2307.1364898,0.00029439,2]
[356435484,1742445040591,-1912.2483666,0.0002945,2]
[356435485,1742445040600,-2362.2437468,0.00029459,2]
[356435486,1742445040609,-500.0,0.00029459,2]
[356435487,1742445040619,-500.0,0.00029459,2]
[356435488,1742445040628,-497.9106119,0.00029459,2]
[356435489,1742445040637,-2624.7590181,0.0002946,2]
[356435490,1742445040647,-2636.7980446,0.0002947,2]
[356435491,1742445040656,-2966.4595993,0.0002947,2]
[356435492,1742445040666,-3296.1211541,0.0002947,2]
[356435493,1742445040675,-2130.4613718,0.0002947,2]
[356435494,1742445040685,-500.0,0.00029479,2]
[356435495,1742445040694,-500.0,0.00029479,2]
[356435496,1742445040703,-500.0,0.00029479,2]
[356435497,1742445040713,-500.0,0.00029479,2]
[356435498,1742445040723,-500.0,0.00029479,2]
[356435499,1742445040732,-500.0,0.00029479,2]
[356435500,1742445040742,-500.0,0.00029479,2]
[356435501,1742445040751,-521.04902323,0.00029479,2]
[356435502,1742445040760,-500.0,0.00029479,2]
[356435503,1742445040770,-429.48416927,0.00029479,2]
[356435504,1742445040779,-500.0,0.00029479,2]
[356435505,1742445040788,-500.0,0.00029479,2]
[356435506,1742445040798,-150.0,0.00029479,2]
[356435507,1742445040807,-500.0,0.00029479,2]
[356435508,1742445040817,-500.0,0.00029479,2]
[356435509,1742445040826,-3144.0,0.00029479,2]
[356435510,1742445040836,-1050.01664688,0.0002948,3]
[356435511,1742445040846,-151.80044,0.00029488,7]
[356435512,1742445040855,-350.00554896,0.00029489,3]
[356435513,1742445040865,-500.0,0.00029489,2]
[356435514,1742445040875,-500.0,0.00029489,2]
[356435515,1742445040885,-500.0,0.00029489,2]
[356435516,1742445040895,-500.0,0.00029489,2]
[356435517,1742445040906,-500.0,0.00029489,2]
[356435518,1742445040915,-500.0,0.00029489,2]
[356435519,1742445040924,-500.0,0.00029489,2]
[356435520,1742445040934,-500.0,0.00029489,2]
[356435521,1742445040943,-500.0,0.00029489,2]
[356435522,1742445040953,-500.0,0.00029489,2]
[356435523,1742445040962,-500.0,0.00029489,2]
[356435524,1742445040971,-500.0,0.00029489,2]
[356435525,1742445040981,-2634.86,0.00029489,2]
[356435526,1742445040993,-555.81,0.00029489,2]
[356435527,1742445041002,-500.0,0.00029489,2]
[356435528,1742445041012,-403.64863335,0.00029489,2]
[356435529,1742445041021,-500.0,0.00029489,2]
[356435530,1742445041032,-1750.0277448,0.0002949,3]
[356435531,1742445041041,-17085.3242773,0.0002949,3]
[356435532,1742445041051,-150.0,0.00029499,2]
[356435533,1742445041061,-500.0,0.00029499,2]
[356435534,1742445041070,-500.0,0.00029499,2]
[356435535,1742445041081,-500.0,0.00029499,2]
[356435536,1742445041091,-500.0,0.00029499,2]
[356435537,1742445041100,-418.82125618,0.00029499,2]
[356435538,1742445041109,-500.0,0.00029499,2]
[356435539,1742445041119,-442.24084597,0.00029499,2]
[356435540,1742445041128,-500.0,0.00029499,2]
[356435541,1742445041137,-600.0,0.00029499,2]
[356435542,1742445041147,-500.0,0.00029499,2]
[356435543,1742445041157,-500.0,0.00029499,2]
[356435544,1742445041166,-500.0,0.00029499,2]
[356435545,1742445041176,-500.0,0.00029499,2]
[356435546,1742445041186,-500.0,0.00029499,2]
[356435547,1742445041195,-500.0,0.00029499,2]
[356435548,1742445041204,-500.0,0.00029499,2]
[356435549,1742445041216,-500.0,0.00029499,2]
[356435550,1742445041226,-500.0,0.00029499,2]
[356435551,1742445041236,-500.0,0.00029499,2]
[356435552,1742445041246,-500.0,0.00029499,2]
[356435553,1742445041255,-500.0,0.00029499,2]
[356435554,1742445041265,-500.0,0.00029499,2]
[356435555,1742445041275,-500.0,0.00029499,2]
[356435556,1742445041284,-500.0,0.00029499,2]
[356435557,1742445041293,-500.0,0.00029499,2]
[356435558,1742445041303,-500.0,0.00029499,2]
[356435559,1742445041313,-500.0,0.00029499,2]
[356435561,1742445041323,-344.50055773,0.00029499,2]
[356435562,1742445041333,-500.0,0.00029499,2]
[356435563,1742445041343,-229.46413346,0.00029499,2]
[356435564,1742445041352,-500.0,0.00029499,2]
[356435565,1742445041362,-500.0,0.00029499,2]
[356435566,1742445041372,-500.0,0.00029499,2]
[356435567,1742445041381,-500.0,0.00029499,2]
[356435568,1742445041391,-500.0,0.00029499,2]
[356435569,1742445041400,-500.0,0.00029499,2]
[356435570,1742445041410,-500.0,0.00029499,2]
[356435571,1742445041421,-164.36768244,0.00029499,2]
[356435572,1742445041431,-500.0,0.00029499,2]
[356435573,1742445041442,-500.0,0.00029499,2]
[356435574,1742445041655,-252.0777035,0.00029499,2]
[356435575,1742445041667,-500.0,0.00029499,2]
[356435576,1742445041677,-500.0,0.00029499,2]
[356435577,1742445041687,-1000.0,0.000295,2]
[356435578,1742445041696,-129676.8539732,0.000295,15]
[356435579,1742445041709,-4821.6798791,0.000295,15]
[356435580,1742445041720,-308.94361421,0.000295,15]
[356435581,1742445041732,-2433.75595723,0.000295,15]
[356435582,1742445041743,-2027.83370003,0.000295,15]
[356435583,1742445041755,-2884.84977065,0.000295,15]
[356435584,1742445041767,-2451.1127707,0.000295,15]
[356435585,1742445041778,-801.81421915,0.000295,15]
[356435586,1742445041789,-502.67673253,0.000295,15]
[356435587,1742445041925,-167.73673983,0.00028079,2]
[356435594,1742445042751,-3770.26326017,0.00028079,2]
[356435595,1742445042760,-287.96771623,0.00029411,2]
[356435596,1742445042770,-815.5,0.00029493,15]
[356435597,1742445042778,-17240.04676411,0.000295,15]
[356435598,1742445042790,-8508.38170162,0.000295,15]
[356435600,1742445042809,-5418.13968742,0.000295,15]
[356435602,1742445042821,-8436.6,0.000295,15]
[356435605,1742445042832,-6171.0,0.000295,15]
[356435607,1742445043720,-1740.01,0.000295,15]
[356435608,1742445043732,-476.95478047,0.000295,15]
[356435609,1742445043743,-799.67334116,0.000295,15]
[356435610,1742445043754,-844.70908518,0.000295,15]
[356435611,1742445043766,-620.60000009,0.000295,15]
[356435612,1742445043777,-615.40926904,0.000295,15]
[356435613,1742445043788,-678.43310487,0.000295,15]
[356435615,1742445045823,-500.0,0.00029489,2]
[356435616,1742445045833,-51646.050003,0.000295,15]
[356435617,1742445045844,-439.5996,0.000295,15]
[356435618,1742445045943,-2234.41498821,0.000295,15]
[356435619,1742445045954,-579.03,0.000295,15]
[356435620,1742445045966,-441.75,0.000295,15]
[356435621,1742445046063,-73000.0,0.000295,15]
[356435622,1742445046121,-4305.94619346,0.000295,15]
[356435623,1742445046133,-1809.45183458,0.000295,15]
[356435626,1742445057969,-300.0,0.00029493,15]
[356435627,1742445063090,-287.96771623,0.0002891,2]
[356435628,1742445064313,-577.9262236,0.0002891,2]
[356435629,1742445072993,-227.93799871,0.0002891,2]
[356435630,1742445078115,-150.0,0.0002891,2]
[356435635,1742445121421,-153.0,0.00026518,2]
[356435636,1742445121443,-153.0,0.00026518,2]
[356435637,1742445121465,-68.96658374,0.0002891,2]
[356435638,1742445132716,-150.0,0.00026518,2]
[356435639,1742445132738,-16.79155609,0.00028615,2]
[356435640,1742445133429,-166.79155609,0.00028615,2]
[356435641,1742445138158,-39.80548782,0.00028615,2]
[356435642,1742445138181,-314.175,0.00028615,2]
[356435643,1742445138209,-109.89827235,0.0002891,2]
[356435644,1742445223429,-153.0,0.00026515,2]
[356435645,1742445223455,-84.84910129,0.00026668,2]
[356435646,1742445406229,1146.0,0.00017,60]
[356435652,1742446231940,-157.12,0.00026288,2]
[356435653,1742446231950,-269.36,0.00026849,2]
[356435654,1742446231959,-150.0,0.0002814,7]
[356435655,1742446231969,-666.6,0.00028206,2]
[356435656,1742446231979,-167.73,0.00028235,120]
[356435657,1742446231988,-2797.20786348,0.00028239,2]
[356435658,1742446232000,-568.88313652,0.00028239,2]
[356435659,1742446232009,-176.55255507,0.00028338,2]
[356435660,1742446232018,-1000.0,0.00028438,2]
[356435661,1742446232028,-174.24,0.00028463,2]
[356435662,1742446232037,-174.24,0.00028538,2]
[356435663,1742446232046,-174.24,0.00028613,2]
[356435664,1742446232055,-174.24,0.00028688,2]
[356435665,1742446232065,-174.24,0.00028763,2]
[356435666,1742446232074,-174.24,0.00028838,2]
[356435667,1742446232083,-607.0,0.00028849,2]
[356435668,1742446232093,-231.25041728,0.000289,5]
[356435669,1742446232102,-329.44584729,0.0002891,2]
[356435670,1742446232112,-174.24,0.00028913,2]
[356435671,1742446232121,-174.24,0.00028988,2]
[356435672,1742446232131,-900.0,0.00029,30]
[356435673,1742446232140,-174.24,0.00029063,2]
[356435674,1742446232149,-174.24,0.00029137,2]
[356435675,1742446232160,-150.0,0.00029169,2]
[356435676,1742446232171,-1967.86944429,0.0002921,2]
[356435677,1742446232182,-254.89,0.0002921,2]
[356435678,1742446232194,-983.94936565,0.0002921,2]
[356435679,1742446232205,-1023.52500493,0.0002921,2]
[356435680,1742446232219,-2413.42761573,0.0002921,2]
[356435681,1742446232230,-283.32761374,0.0002921,2]
[356435682,1742446232242,-810.18774977,0.0002921,2]
[356435683,1742446232255,-384.26,0.0002921,2]
[356435684,1742446232266,-346.17549988,0.0002921,2]
[356435685,1742446232283,-302.0,0.0002921,2]
[356435742,1742446237974,-1801.7113589,0.0002921,2]
[356435743,1742446237984,-174.24,0.00029212,2]
[356435744,1742446237994,-174.24,0.00029287,2]
[356435745,1742446238003,-174.24,0.00029362,2]
[356435746,1742446238013,-153.58278212,0.00029398,2]
[356435747,1742446238023,-153.58278198,0.00029398,2]
[356435748,1742446238032,-153.58278198,0.00029398,2]
[356435749,1742446238041,-127.30029502,0.00029398,2]
[356435750,1742446238052,-26.28248696,0.00029398,2]
[356435751,1742446238062,-153.58278198,0.00029399,2]
[356435752,1742446238071,-153.58278198,0.00029399,2]
[356435753,1742446238080,-153.58278198,0.00029399,2]
[356435754,1742446238090,-153.58278198,0.00029399,2]
[356435755,1742446238099,-159.9268,0.000294,2]
[356435756,1742446238108,-522.42285538,0.000294,2]
[356435757,1742446238119,-378.00513087,0.000294,2]
[356435758,1742446238130,-3600.0,0.000294,2]
[356435759,1742446238142,-4821.67992046,0.000294,2]
[356435760,1742446238154,-717.33266096,0.000294,2]
[356435761,1742446238165,-323.35624258,0.000294,2]
[356435762,1742446238176,-780.80708975,0.000294,2]
[356435763,1742446238185,-777.52210531,0.000294,2]
[356435764,1742446238197,-1144.63046961,0.000294,2]
[356435768,1742446240024,-153.58278198,0.00029399,2]
[356435769,1742446240033,-878.72020601,0.000294,2]
[356435770,1742446240045,-17223.46365979,0.000294,2]
[356435771,1742446240135,-570.14110193,0.000294,2]
[356435772,1742446240193,-4000.39879996,0.000294,2]
[356435773,1742446240251,-1297.62323422,0.000294,2]
[356435774,1742446240266,-2276.90767204,0.000294,2]
[356435775,1742446240369,-1714.05964372,0.000294,2]
[356435776,1742446240381,-452.63917883,0.000294,2]
[356435777,1742446240392,-2592.4346909,0.000294,2]
[356435778,1742446240404,-3488.35063768,0.000294,2]
[356435779,1742446240413,-174.24,0.00029437,2]
[356435780,1742446240423,-807.68228732,0.0002948,2]
[356435781,1742446240440,-786.49262927,0.0002948,2]
[356435788,1742446240602,-413.15347707,0.0002948,2]
[356435790,1742446240614,-1776.18241886,0.0002948,2]
[356435791,1742446240623,-500.0,0.00029489,2]
[356435792,1742446240633,-166.43451243,0.00029489,2]
[356435793,1742446240643,-397.82038891,0.00029489,2]
[356435794,1742446240655,-102.17961109,0.00029489,2]
[356435795,1742446240664,-212.128,0.0002949,23]
[356435796,1742446240673,-7817.01558886,0.0002949,3]
[356435835,1742446244138,-445.58379252,0.0002949,3]
[356435836,1742446244150,-500.0,0.0002949,3]
[356435842,1742446246180,-153.58278198,0.00029399,2]
[356435843,1742446246190,-138.61064979,0.0002949,3]
[356435844,1742446246201,-969.059672,0.0002949,3]
[356435845,1742446246218,-171370.00000001,0.0002949,3]
[356435846,1742446246230,-615.5750004,0.0002949,3]
[356435847,1742446246240,-22760.44178742,0.0002949,3]
[356435848,1742446246250,-511.09,0.00029498,2]
[356435849,1742446246258,-500.0,0.00029498,2]
[356435850,1742446246267,-454.23321571,0.00029498,2]
[356435851,1742446246277,-500.0,0.00029498,2]
[356435852,1742446246287,-500.0,0.00029498,2]
[356435853,1742446246296,-500.0,0.00029498,2]
[356435854,1742446246305,-635.87893645,0.00029498,2]
[356435855,1742446246314,-500.0,0.00029498,2]
[356435856,1742446246324,-500.0,0.00029498,2]
[356435857,1742446246333,-500.0,0.00029498,2]
[356435858,1742446246342,-372.35549317,0.00029498,2]
[356435859,1742446246351,-194.06343512,0.00029498,2]
[356435860,1742446246359,-500.0,0.00029498,2]
[356435861,1742446246368,-277.7955142,0.00029498,2]
[356435862,1742446246377,-500.0,0.00029498,2]
[356435863,1742446246386,-500.0,0.00029498,2]
[356435864,1742446246395,-500.0,0.00029498,2]
[356435865,1742446246403,-500.0,0.00029498,2]
[356435866,1742446246413,-500.0,0.00029498,2]
[356435867,1742446246422,-500.0,0.00029498,2]
[356435868,1742446246432,-254.08834808,0.00029498,2]
[356435869,1742446246441,-500.0,0.00029498,2]
[356435871,1742446246450,-500.0,0.00029498,2]
[356435873,1742446246460,-500.0,0.00029498,2]
[356435875,1742446246470,-205.70865146,0.00029498,2]
[356435877,1742446246480,-500.0,0.00029498,2]
[356435879,1742446246491,-500.0,0.00029498,2]
[356435881,1742446246501,-500.0,0.00029498,2]
[356435883,1742446246510,-500.0,0.00029498,2]
[356435884,1742446246520,-500.0,0.00029498,2]
[356435886,1742446246529,-500.0,0.00029498,2]
[356435887,1742446246538,-500.0,0.00029498,2]
[356435888,1742446246547,-374.96658374,0.00029498,2]
[356435889,1742446246556,-500.0,0.00029498,2]
[356435890,1742446246566,-500.0,0.00029498,2]
[356435891,1742446246574,-468.9202669,0.00029498,2]
[356435892,1742446246584,-500.0,0.00029498,2]
[356435893,1742446246593,-500.0,0.00029498,2]
[356435894,1742446246604,-593.92456523,0.00029498,2]
[356435895,1742446246614,-395.25253423,0.00029498,2]
[356435896,1742446246623,-500.0,0.00029498,2]
[356435897,1742446246634,-500.0,0.00029498,2]
[356435898,1742446246643,-500.0,0.00029498,2]
[356435899,1742446246653,-500.0,0.00029498,2]
[356435900,1742446246663,-500.0,0.00029498,2]
[356435901,1742446246672,-500.0,0.00029498,2]
[356435902,1742446246682,-500.0,0.00029498,2]
[356435903,1742446246693,-500.0,0.00029499,2]
[356435904,1742446246702,-500.0,0.00029499,2]
[356435905,1742446246712,-500.0,0.00029499,2]
[356435906,1742446246721,-150.0,0.00029499,2]
[356435907,1742446246731,-500.0,0.00029499,2]
[356435908,1742446246741,-500.0,0.00029499,2]
[356435909,1742446246751,-500.0,0.00029499,2]
[356435910,1742446246760,-500.0,0.00029499,2]
[356435911,1742446246769,-361.71515371,0.00029499,2]
[356435912,1742446246779,-500.0,0.00029499,2]
[356435913,1742446246788,-150.00032385,0.00029499,2]
[356435914,1742446246798,-500.0,0.00029499,2]
[356435915,1742446246807,-500.0,0.00029499,2]
[356435916,1742446246817,-500.0,0.00029499,2]
[356435917,1742446246827,-500.0,0.00029499,2]
[356435918,1742446246837,-568.48421116,0.00029499,2]
[356435919,1742446246846,-565.48073057,0.00029499,2]